bitfinex/quotes_ETHUSD_20260130
["timestamp","ask_amount","ask_price","bid_price","bid_amount"]
[1769784136459,8.22168808,2751.2,2749.4,0.01101564]
[1769784136658,0.01101564,2752.7,2749.4,0.01101564]
[1769784136659,8.22168808,2751.8,2750.2,0.01101564]
[1769784136820,0.82436881,2751.7,2750.2,0.01101564]
[1769784137016,9.04605689,2751.7,2750.0,0.01101564]
[1769784138052,8.22168808,2751.3,2749.7,0.01101564]
[1769784138357,8.22168808,2751.1,2749.1,0.01101564]
[1769784138556,0.82436881,2751.7,2749.3,0.01101564]
[1769784138557,8.22168808,2750.9,2749.3,0.01101564]
[1769784138918,8.22168808,2750.9,2749.0,0.01101564]
[1769784139451,8.22168808,2750.7,2748.7,0.01101564]
[1769784139820,8.22168808,2750.3,2748.4,0.01101564]
[1769784140041,8.22168808,2750.1,2748.6,0.01101564]
[1769784140242,8.22168808,2750.1,2748.0,0.01101564]
[1769784140827,8.22168808,2750.0,2748.2,0.01101564]
[1769784141741,8.22168808,2750.0,2748.0,0.01101564]
[1769784141937,1.03728181,2750.2,2748.8,0.01101564]
[1769784142137,8.22168808,2750.7,2749.0,0.01101564]
[1769784142337,8.22168808,2750.7,2749.2,0.01101564]
[1769784144775,8.22168808,2750.7,2749.0,0.01101564]
[1769784145346,7.72168808,2750.7,2749.2,0.01101564]
[1769784145975,7.72168808,2750.7,2748.8,0.01101564]
[1769784146173,8.99385689,2750.6,2749.0,0.01101564]
[1769784146585,8.99385689,2750.6,2748.4,0.01101564]
[1769784146738,8.22168808,2750.4,2748.2,0.01201564]
[1769784146942,4.800518,2750.1,2748.2,0.001]
[1769784147318,0.002,2750.5,2748.2,0.001]
[1769784147319,8.22168808,2749.8,2748.2,0.001]
[1769784147434,0.82216881,2749.7,2748.3,0.01101564]
[1769784147637,8.22168808,2749.8,2748.5,0.01101564]
[1769784147837,8.22168808,2750.2,2748.5,0.01101564]
[1769784148283,8.22168808,2750.2,2748.3,0.01101564]
[1769784148735,8.22168808,2750.0,2748.4,0.01101564]
[1769784149163,8.22168808,2750.0,2748.7,0.01101564]
[1769784149367,9.04385689,2750.0,2748.7,0.01101564]
[1769784149666,9.04385689,2750.0,2748.4,0.01101564]
[1769784150448,9.04385689,2750.0,2748.8,0.01101564]
[1769784150753,9.04385689,2750.0,2748.6,0.01101564]
[1769784151353,8.22368808,2750.5,2749.0,0.01101564]
[1769784151690,8.22368808,2750.5,2748.6,0.01101564]
[1769784151987,8.22168808,2750.3,2748.4,0.01101564]
[1769784152162,8.22168808,2750.2,2748.4,0.01101564]
[1769784152364,3.250325,2749.9,2748.2,0.001]
[1769784152564,0.002,2750.5,2748.2,0.001]
[1769784152565,8.22168808,2749.6,2748.2,0.001]
[1769784153168,8.22168808,2750.2,2749.2,0.01101564]
[1769784153486,8.22168808,2750.2,2748.9,0.01101564]
[1769784154475,8.22168808,2750.2,2748.2,0.001]
[1769784154682,8.22168808,2750.2,2748.2,0.01201564]
[1769784154923,8.22168808,2750.0,2748.6,0.01101564]
[1769784155457,8.22168808,2750.6,2748.8,0.01101564]
[1769784155691,8.22368808,2750.5,2749.0,0.01101564]
[1769784156297,8.22368808,2750.5,2748.8,0.01101564]
[1769784156654,8.22368808,2750.5,2749.0,0.01101564]
[1769784156884,9.04625689,2750.5,2749.0,0.01101564]
[1769784157281,9.04625689,2750.5,2748.8,0.01101564]
[1769784157488,9.04625689,2750.5,2748.6,0.9205671]
[1769784157681,9.04625689,2750.5,2748.8,0.01101564]
[1769784158081,9.04625689,2750.5,2749.0,0.01101564]
[1769784158809,8.22368808,2750.5,2749.0,0.01101564]
[1769784159679,8.22368808,2750.5,2749.4,0.01101564]
[1769784160074,8.22368808,2750.5,2749.2,0.01101564]
[1769784160285,8.22368808,2750.5,2749.0,0.9204353]
[1769784160486,8.22368808,2750.5,2749.4,0.01101564]
[1769784160686,8.22368808,2750.5,2749.2,0.01101564]
[1769784161979,9.04625689,2750.5,2749.0,0.01101564]
[1769784162314,9.04625689,2750.5,2748.4,0.92062692]
[1769784162517,9.04625689,2750.5,2748.6,0.01101564]
[1769784162924,9.04625689,2750.5,2748.4,0.01101564]
[1769784162925,8.27515655,2749.9,2748.2,0.001]
[1769784163082,8.27515655,2749.5,2748.2,0.001]
[1769784163428,8.27515655,2749.3,2748.2,0.001]
[1769784163591,8.27515655,2749.3,2746.8,0.01101564]
[1769784163795,8.27515655,2748.7,2746.9,0.01101564]
[1769784164001,8.27515655,2748.7,2747.2,0.01101564]
[1769784164206,8.27515655,2748.3,2746.4,0.01101564]
[1769784164617,8.27515655,2748.3,2746.5,0.01101564]
[1769784164787,8.27515655,2748.3,2746.7,0.01101564]
[1769784164991,8.27515655,2748.3,2746.9,0.01101564]
[1769784165925,8.27515655,2748.8,2747.6,0.01101564]
[1769784166079,9.10267221,2748.8,2747.2,0.01101564]
[1769784166296,9.10267221,2748.8,2747.1,0.91002753]
[1769784166530,9.10267221,2748.8,2747.4,0.01101564]
[1769784166918,9.10267221,2748.8,2747.5,14.5]
[1769784167421,8.27515655,2748.6,2746.5,0.01101564]
[1769784167606,8.27515655,2748.4,2746.9,0.01101564]
[1769784167810,1.17785906,2748.5,2747.1,0.01101564]
[1769784168010,8.27515655,2748.9,2747.3,0.01101564]
[1769784168212,8.27515655,2748.9,2747.7,0.01101564]
[1769784168540,8.27515655,2748.9,2747.5,0.01101564]
[1769784168735,8.27515655,2748.9,2747.3,0.01101564]
[1769784169036,8.27515655,2748.7,2746.7,0.01101564]
[1769784169193,0.01101564,2749.3,2747.1,0.01101564]
[1769784169194,8.27515655,2748.5,2747.1,0.01101564]
[1769784169396,8.27515655,2748.5,2747.3,0.01101564]
[1769784169607,8.27515655,2748.5,2747.1,14.51101564]
[1769784169830,8.27515655,2748.5,2747.1,14.5]
[1769784170038,8.27515655,2748.5,2747.2,0.01101564]
[1769784170200,8.27515655,2748.5,2747.3,1.54210432]
[1769784171242,8.27515655,2748.5,2747.6,0.001]
[1769784172632,8.27515655,2749.1,2747.6,0.001]
[1769784173708,8.27515655,2748.7,2747.6,0.001]
[1769784180655,8.27515655,2748.7,2746.3,3.65224215]
[1769784180656,8.27515655,2748.1,2745.9,0.91042152]
[1769784180937,8.27515655,2748.1,2746.5,0.01101564]
[1769784181714,0.82751566,2748.6,2746.3,14.5]
[1769784181715,8.27515655,2747.9,2746.3,14.5]
[1769784182033,8.27515655,2747.9,2746.2,0.001]
[1769784182404,8.27515655,2747.5,2746.2,0.001]
[1769784182606,8.27515655,2747.3,2746.2,0.001]
[1769784182805,8.27515655,2747.3,2746.7,0.001]
[1769784184011,8.27515655,2747.8,2746.7,0.001]
[1769784184219,0.002,2748.3,2746.8,0.01101564]
[1769784184220,8.27715655,2748.3,2746.8,0.01101564]
[1769784184425,0.002,2748.3,2747.0,0.01101564]
[1769784184632,0.002,2748.3,2747.1,14.51101564]
[1769784184983,0.002,2748.3,2747.2,1.45110156]
[1769784185450,0.01101564,2753.1,2749.9,1.0882727]
[1769784185621,0.01101564,2752.9,2751.0,6.25337441]
[1769784185819,8.28617219,2753.4,2751.0,6.25337441]
[1769784185820,0.0008,2753.8,2753.0,1.25034804]
[1769784186130,10.95274596,2753.6,2752.4,0.763]
[1769784186311,1.48422911,2753.6,2753.1,2.58561526]
[1769784186513,0.01101564,2754.1,2752.4,4.5248267]
[1769784186514,0.01101564,2754.2,2753.4,2.58561526]
[1769784186816,6.25337441,2755.0,2753.2,0.77568457]
[1769784186817,7.67540843,2754.6,2754.1,1.93900035]
[1769784187017,0.76754084,2754.5,2754.4,1.29248231]
[1769784187212,0.76754084,2754.5,2754.4,2.0682252]
[1769784187413,0.0008,2754.6,2753.2,5.43284798]
[1769784187414,0.0008,2754.6,2753.3,0.90799694]
[1769784187620,0.0008,2754.6,2753.3,1.87382725]
[1769784187832,0.0008,2754.6,2753.4,0.763]
[1769784188031,0.01181564,2755.5,2753.4,9.33422356]
[1769784188032,0.0008,2755.5,2753.4,9.33422356]
[1769784188342,7.67460843,2755.4,2753.5,14.5]
[1769784188652,0.77855648,2755.3,2753.5,14.5]
[1769784188854,0.76754084,2755.3,2753.5,14.5]
[1769784189061,0.76754084,2755.3,2753.5,15.40792574]
[1769784189354,0.76754084,2755.3,2753.5,14.5]
[1769784189529,3.783643,2754.9,2752.9,0.763]
[1769784189732,0.77855648,2755.3,2752.9,0.763]
[1769784189733,1.14582514,2754.8,2753.4,0.90795871]
[1769784189997,2.831215,2755.4,2753.5,15.263]
[1769784190142,7.67460843,2755.3,2753.5,14.5]
[1769784190468,7.68562407,2755.1,2753.5,14.5]
[1769784190630,14.30447,2754.8,2752.5,0.01101564]
[1769784190836,14.30447,2754.8,2752.9,0.762]
[1769784190837,2.782354,2754.8,2752.9,0.762]
[1769784191042,1.04569624,2754.7,2752.8,1.67014746]
[1769784191355,1.04569624,2754.7,2753.1,0.01101564]
[1769784191652,3.510433,2755.4,2753.1,3.64325931]
[1769784191853,2.689433,2755.4,2753.5,0.90793494]
[1769784192062,6.686882,2755.3,2753.0,14.5]
[1769784192226,2.844922,2755.3,2753.5,0.90792166]
[1769784192421,0.0008,2755.5,2753.5,0.90792166]
[1769784192641,0.0008,2755.5,2753.6,0.45506787]
[1769784192828,0.0008,2755.5,2753.7,0.762]
[1769784193031,3.600927,2755.4,2753.8,14.5]
[1769784193222,0.0008,2755.5,2753.8,14.5]
[1769784194549,0.0008,2755.5,2753.8,15.40781521]
[1769784194727,0.0008,2755.5,2753.9,1.61698152]
[1769784195870,0.0008,2756.3,2754.2,0.01101564]
[1769784196085,0.0008,2756.3,2754.6,0.01101564]
[1769784196328,0.31050132,2757.0,2754.6,0.01101564]
[1769784196329,0.0008,2758.0,2755.7,7.59437761]
[1769784196455,0.0008,2758.0,2755.3,0.01101564]
[1769784196456,0.0008,2758.9,2756.9,7.59437761]
[1769784196790,0.31255562,2759.6,2756.8,0.90684852]
[1769784196791,7.67460843,2760.9,2759.5,0.01101564]
[1769784196965,7.67460843,2760.4,2758.8,0.01101564]
[1769784197289,2.219015,2760.2,2757.7,0.01101564]
[1769784197534,7.67460843,2759.9,2758.5,0.01101564]
[1769784197663,7.67460843,2759.9,2757.9,0.01101564]
[1769784197664,13.18640443,2759.8,2758.4,0.01101564]
[1769784197864,0.98936234,2760.1,2757.5,0.01101564]
[1769784197865,12.94827143,2759.4,2757.5,0.01101564]
[1769784198095,0.41520472,2760.4,2756.8,0.01101564]
[1769784198096,0.0008,2761.5,2758.6,6.34128962]
[1769784198303,1.90627377,2763.4,2758.6,6.34128962]
[1769784198304,0.01101564,2763.4,2761.2,14.5]
[1769784198457,0.0008,2763.2,2761.3,7.59437761]
[1769784198656,0.0008,2763.2,2761.4,1.66733787]
[1769784199058,0.0008,2763.2,2761.6,7.59437761]
[1769784199261,0.0008,2763.2,2761.7,2.57468396]
[1769784199582,0.0008,2763.2,2761.8,0.2335703]
[1769784199758,0.01181564,2764.0,2761.9,7.59437761]
[1769784199954,4.763033,2763.9,2761.9,0.2335703]
[1769784200155,3.8,2763.9,2762.0,14.5]
[1769784200370,0.01101564,2763.8,2761.4,0.90533787]
[1769784200575,0.3921172,2763.7,2761.4,0.90533778]
[1769784200856,0.01101564,2763.4,2761.5,14.5]
[1769784201083,3.273,2763.5,2761.4,0.90533332]
[1769784201296,0.0008,2764.0,2761.8,0.01101564]
[1769784201460,0.01101564,2763.5,2761.4,0.90533197]
[1769784201660,0.01101564,2763.5,2761.2,3.62159823]
[1769784201661,0.1024,2763.3,2761.2,0.01101564]
[1769784201865,0.01101564,2763.0,2760.7,0.01101564]
[1769784202184,3.2735,2763.0,2760.8,0.01101564]
[1769784202359,0.1024,2762.9,2760.3,0.01101564]
[1769784202563,0.01101564,2762.6,2760.0,1.66679565]
[1769784202761,0.1024,2762.5,2760.2,0.01101564]
[1769784202979,4.861973,2762.6,2760.2,0.01101564]
[1769784202980,0.1024,2762.6,2760.4,0.01101564]
[1769784203194,9.14948564,2762.5,2759.7,0.90589391]
[1769784203399,9.14948564,2762.5,2759.2,7.60539325]
[1769784203400,9.13847,2762.3,2759.8,0.01101564]
[1769784203597,9.13847,2762.3,2759.4,0.01101564]
[1769784203598,6.305736,2761.7,2759.4,0.01101564]
[1769784203826,6.305736,2761.7,2758.7,0.63412896]
[1769784203827,0.1024,2761.7,2758.7,0.63412896]
[1769784204012,7.68562407,2761.2,2758.7,0.63412896]
[1769784204211,7.68562407,2761.2,2758.1,0.01101564]
[1769784204212,0.11341564,2760.9,2758.3,0.01101564]
[1769784204425,3.296253,2761.1,2759.0,0.01101564]
[1769784204646,0.77201564,2761.9,2758.8,0.01101564]
[1769784204647,0.60899,2762.8,2759.5,7.59437761]
[1769784204919,5.98306059,2762.6,2760.6,0.01101564]
[1769784205101,2.36415,2762.4,2760.7,0.01101564]
[1769784205298,6.218363,2762.4,2760.3,0.01101564]
[1769784205498,6.218363,2762.4,2759.3,0.01101564]
[1769784205499,7.67460843,2762.3,2760.2,0.01101564]
[1769784205809,7.67460843,2762.3,2759.2,0.01101564]
[1769784205810,13.89975843,2761.7,2759.2,0.01101564]
[1769784206009,15.12153143,2761.5,2758.8,8.51157352]
[1769784206224,15.13254707,2761.4,2758.8,0.01101564]
[1769784206424,0.01101564,2760.4,2757.5,0.01101564]
[1769784206620,0.01101564,2760.4,2758.1,0.90640791]
[1769784206936,4.79306,2760.6,2758.2,0.46532643]
[1769784207092,4.86506,2760.5,2758.2,0.46532643]
[1769784207424,7.68562407,2761.4,2758.7,0.01101564]
[1769784207585,6.533972,2761.8,2759.1,0.01101564]
[1769784207785,2.201932,2761.4,2759.0,0.01101564]
[1769784208016,0.01101564,2761.5,2758.7,0.01101564]
[1769784208017,0.2323104,2761.3,2758.7,0.01101564]
[1769784208194,0.01101564,2761.3,2758.7,0.01101564]
[1769784208398,2.95329,2761.3,2759.1,0.01101564]
[1769784208598,7.446923,2761.2,2758.7,0.01101564]
[1769784208799,0.76,2761.4,2758.9,0.01101564]
[1769784209000,0.01101564,2761.7,2759.5,0.001]
[1769784209208,7.446923,2761.2,2759.5,0.001]
[1769784209402,0.74579386,2761.1,2759.5,0.001]
[1769784209598,4.19739,2760.9,2759.5,0.001]
[1769784209798,0.76,2761.3,2759.5,0.001]
[1769784210221,5.58613564,2761.2,2759.5,0.001]
[1769784210392,6.996339,2761.1,2759.5,0.001]
[1769784210586,0.01101564,2761.0,2759.5,0.001]
[1769784210788,7.446923,2760.6,2758.2,0.45431079]
[1769784211001,1.51325471,2760.5,2758.6,0.90624335]
[1769784211221,0.76,2761.2,2758.9,0.01101564]
[1769784211425,7.67460843,2761.3,2758.9,0.01101564]
[1769784211595,2.7113,2761.1,2758.9,0.01101564]
[1769784211923,2.279049,2761.1,2758.7,0.01101564]
[1769784212126,2.002049,2761.2,2758.9,0.01101564]
[1769784212311,0.01101564,2762.6,2759.4,0.01101564]
[1769784212312,0.96766574,2761.1,2759.4,0.01101564]
[1769784212622,3.1757,2761.8,2759.6,0.01101564]
[1769784212825,3.1757,2761.8,2759.5,0.905953]
[1769784213034,3.1757,2761.8,2759.4,0.01101564]
[1769784213407,0.01101564,2761.5,2759.1,0.90607512]
[1769784213597,7.446923,2761.4,2759.1,0.91709076]
[1769784213796,0.74579386,2761.3,2759.2,0.45414796]
[1769784213994,4.287263,2761.6,2759.4,0.9059753]
[1769784214229,4.287263,2761.6,2759.3,0.91701368]
[1769784214405,2.326263,2761.6,2759.3,0.01101564]
[1769784214997,7.45793864,2761.5,2759.1,0.90607169]
[1769784215237,6.040536,2761.4,2758.9,0.01101564]
[1769784215528,0.01101564,2761.5,2758.8,0.90617252]
[1769784215529,3.6087,2761.2,2758.8,0.90617252]
[1769784215729,3.6087,2761.2,2758.7,0.01101564]
[1769784215910,12.93731643,2761.0,2758.5,0.01101564]
[1769784216107,7.446923,2760.8,2758.7,0.01101564]
[1769784216296,7.446923,2760.6,2758.3,8.51172387]
[1769784216496,0.8206923,2760.7,2758.5,0.91728689]
[1769784216696,0.77101564,2760.9,2758.5,0.91728689]
[1769784216697,2.083338,2760.8,2758.5,0.91730437]
[1769784216927,2.082258,2760.9,2758.5,0.90628873]
[1769784217157,0.01101564,2762.1,2758.9,8.15101989]
[1769784217305,2.34443,2762.9,2760.8,0.01101564]
[1769784217512,4.0465,2762.7,2760.9,0.01101564]
[1769784217709,9.36663565,2762.8,2760.3,0.01101564]
[1769784217710,5.364665,2762.5,2760.3,0.01101564]
[1769784218032,0.01101564,2763.3,2760.3,0.01101564]
[1769784218033,0.0028,2764.0,2762.9,0.01101564]
[1769784218239,30.0,2765.1,2762.9,0.01101564]
[1769784218409,30.0,2765.1,2762.4,0.01101564]
[1769784218410,3.0123172,2765.0,2762.4,0.01101564]
[1769784218613,8.205257,2764.9,2762.2,0.01101564]
[1769784218933,0.76,2764.8,2762.6,0.01101564]
[1769784219436,0.01301564,2765.2,2762.8,0.01101564]
[1769784219437,30.0,2765.1,2762.8,0.01101564]
[1769784219734,30.0,2765.1,2762.6,0.01101564]
[1769784219735,7.08324,2764.9,2762.6,0.01101564]
[1769784219937,0.76,2765.0,2762.6,0.01101564]
[1769784220228,0.01101564,2764.9,2762.6,0.81730512]
[1769784220429,0.76,2764.9,2762.7,0.01101564]
[1769784220619,0.76,2764.9,2762.6,0.81730512]
[1769784220620,9.92737664,2764.8,2762.6,0.81730512]
[1769784220931,2.7337,2764.8,2762.4,8.15101989]
[1769784221108,11.193384,2764.6,2762.3,0.01101564]
[1769784221309,0.76,2764.5,2762.7,0.01101564]
[1769784221721,0.76,2764.4,2762.3,0.01101564]
[1769784222030,0.76,2764.3,2762.4,0.90499018]
[1769784222235,0.002,2765.2,2763.3,8.15101989]
[1769784222564,0.002,2765.2,2763.6,0.01101564]
[1769784222565,0.002,2764.9,2763.6,0.01101564]
[1769784222737,0.002,2765.2,2763.7,0.01101564]
[1769784222910,0.002,2765.2,2763.4,0.01101564]
[1769784223101,0.002,2765.2,2762.9,0.01101564]
[1769784223304,0.01101564,2764.3,2761.8,8.15101989]
[1769784223612,0.01101564,2764.1,2761.8,8.15101989]
[1769784223819,0.01101564,2763.6,2761.2,8.16203553]
[1769784224144,0.01101564,2763.6,2760.8,1.85434859]
[1769784224145,0.01101564,2763.2,2760.5,8.16203553]
[1769784224440,8.30199332,2763.6,2761.4,0.01101564]
[1769784224610,0.01101564,2763.8,2761.3,0.01101564]
[1769784224798,0.11341564,2764.2,2761.0,9.08832853]
[1769784224799,0.01101564,2763.5,2761.1,0.926293]
[1769784224999,0.01101564,2763.5,2761.0,9.08832853]
[1769784225233,0.01101564,2764.0,2761.0,9.08832853]
[1769784225234,0.759,2763.4,2761.4,0.91633167]
[1769784225421,0.759,2763.4,2761.4,0.01101564]
[1769784225624,0.01101564,2763.3,2761.2,0.926293]
[1769784225928,13.053014,2763.9,2761.5,9.05632013]
[1769784226131,2.34496,2763.9,2761.6,0.01101564]
[1769784226342,0.234496,2763.8,2762.3,0.926293]
[1769784226544,0.1024,2764.8,2762.3,0.926293]
[1769784226731,0.759,2764.8,2762.8,0.9048791]
[1769784226919,0.759,2764.8,2762.9,0.01101564]
[1769784227240,0.659,2764.8,2762.8,0.926293]
[1769784227446,0.01101564,2764.7,2762.8,0.926293]
[1769784227634,8.96099332,2764.8,2762.6,0.90493891]
[1769784227635,0.8972009,2764.6,2762.6,0.90493891]
[1769784227813,0.01101564,2764.3,2762.3,1.23731706]
[1769784228014,0.01101564,2764.5,2762.1,1.23431706]
[1769784228241,10.65796896,2764.5,2762.0,0.01101564]
[1769784228462,9.06099332,2764.4,2762.3,0.90503309]
[1769784228730,0.9072009,2764.3,2762.4,0.01101564]
[1769784228932,0.759,2764.4,2762.0,0.01101564]
[1769784229137,8.30199332,2764.3,2762.0,0.01101564]
[1769784229351,0.759,2764.2,2762.2,0.01101564]
[1769784229513,13.15845032,2764.1,2761.6,1.84333295]
[1769784229714,0.77001564,2764.2,2761.2,0.01101564]
[1769784229715,8.31300896,2763.7,2761.2,0.01101564]
[1769784230112,8.30199332,2763.4,2760.9,0.01101564]
[1769784230442,0.01101564,2763.1,2760.6,0.01101564]
[1769784230644,8.31300896,2763.0,2760.6,0.01101564]
[1769784230812,4.263396,2762.7,2760.1,0.9167717]
[1769784231017,9.811731,2762.5,2760.2,0.61471832]
[1769784231350,8.30199332,2762.5,2760.2,0.61471832]
[1769784231559,0.759,2762.4,2760.2,0.61471832]
[1769784232020,6.441779,2762.1,2760.0,5.23041146]
[1769784232221,0.759,2762.0,2760.1,0.01101564]
[1769784232445,0.759,2761.9,2760.0,5.23041146]
[1769784232825,0.759,2761.8,2760.0,5.23041146]
[1769784233147,8.30199332,2762.1,2760.0,5.23041146]
[1769784233327,0.759,2761.7,2760.1,0.52414271]
[1769784233642,0.83019933,2762.0,2760.1,0.52414271]
[1769784233812,0.83019933,2762.0,2760.6,0.01101564]
[1769784234012,0.42744116,2762.6,2760.9,0.01101564]
[1769784234250,0.42744116,2762.6,2761.0,0.01101564]
[1769784234412,0.759,2763.2,2761.4,0.01101564]
[1769784234614,1.3928466,2764.0,2761.8,0.01101564]
[1769784234937,1.3928466,2764.0,2762.4,0.01101564]
[1769784235250,0.002,2763.3,2762.6,0.01101564]
[1769784235424,0.002,2763.3,2762.5,0.01101564]
[1769784235625,0.002,2763.3,2762.6,0.01101564]
[1769784236450,0.002,2763.3,2763.0,0.01101564]
[1769784236624,0.002,2763.3,2762.8,0.01101564]
[1769784236826,3.173522,2764.6,2762.8,0.01101564]
[1769784237018,0.3175522,2764.5,2762.8,0.01101564]
[1769784237221,3.345522,2764.6,2762.8,0.01101564]
[1769784237562,2.691522,2764.6,2762.8,0.01101564]
[1769784237924,0.002,2764.7,2763.2,0.01101564]
[1769784238624,0.002,2764.7,2762.8,0.01101564]
[1769784238846,0.002,2764.7,2763.0,0.01101564]
[1769784239046,4.113232,2764.6,2763.0,0.01101564]
[1769784239246,0.4115232,2764.5,2762.8,0.01101564]
[1769784239468,0.002,2764.7,2762.8,0.01101564]
[1769784239753,0.002,2764.7,2763.0,0.01101564]
[1769784240342,19.577171,2764.2,2761.6,0.90525221]
[1769784240541,11.507327,2764.0,2761.4,0.01101564]
[1769784240746,2.84071,2763.8,2761.9,0.01101564]
[1769784241048,0.284071,2763.7,2761.4,0.01101564]
[1769784241364,8.30199332,2764.0,2761.8,0.01101564]
[1769784241365,11.41968632,2763.9,2761.8,0.01101564]
[1769784241564,2.18311,2763.8,2761.6,0.91626556]
[1769784241787,3.285643,2763.8,2761.6,0.9162803]
[1769784241966,8.30199332,2763.5,2761.1,0.001]
[1769784242134,15.32574532,2763.2,2761.2,0.01101564]
[1769784242335,8.30199332,2763.0,2761.1,0.001]
[1769784242533,8.30199332,2763.7,2761.6,0.90526903]
[1769784242754,2.4339,2763.6,2761.7,0.01101564]
[1769784242959,2.4339,2763.6,2761.4,0.01101564]
[1769784243167,5.185007,2763.4,2761.4,0.01101564]
[1769784243353,8.30199332,2763.1,2761.1,0.001]
[1769784243665,8.30199332,2763.1,2761.2,0.01101564]
[1769784243870,1.14948933,2763.5,2761.6,0.01101564]
[1769784244182,0.759,2763.4,2762.0,0.01101564]
[1769784244469,0.759,2763.4,2761.8,0.01101564]
[1769784244765,8.715785,2763.3,2760.9,0.01101564]
[1769784245090,0.759,2763.4,2761.4,0.01101564]
[1769784245269,8.303236,2763.3,2761.3,0.01101564]
[1769784245437,10.03841625,2763.2,2761.0,0.01101564]
[1769784245636,10.03841625,2763.2,2760.8,0.01101564]
[1769784245843,2.177642,2763.0,2761.0,3.63287306]
[1769784246078,0.759,2762.9,2761.1,0.01101564]
[1769784246275,6.823426,2762.8,2760.8,0.01101564]
[1769784246439,1.58844193,2762.7,2760.8,0.01101564]
[1769784246784,8.89928847,2763.5,2761.8,0.01101564]
[1769784247082,2.636341,2763.3,2761.4,0.01101564]
[1769784247261,0.759,2763.4,2761.5,0.01101564]
[1769784247437,2.113036,2763.3,2761.5,0.01101564]
[1769784247876,11.01232447,2763.3,2761.2,0.01101564]
[1769784248057,2.370025,2763.1,2761.4,0.01101564]
[1769784248233,1.93613245,2763.2,2761.4,0.01101564]
[1769784248444,1.93613245,2763.2,2761.2,0.01101564]
[1769784248667,8.89928847,2763.0,2761.1,0.001]
[1769784248878,0.88992885,2762.9,2761.2,0.01101564]
[1769784249080,0.88992885,2762.9,2761.4,0.01101564]
[1769784249280,0.759,2762.8,2761.2,0.01101564]
[1769784249477,0.759,2762.8,2761.1,0.001]
[1769784250677,0.002,2763.3,2761.2,0.01101564]
[1769784250855,0.759,2762.8,2761.4,0.01101564]
[1769784251254,0.002,2763.3,2761.8,0.01101564]
[1769784251695,0.002,2763.3,2762.0,0.01101564]
[1769784251985,0.002,2763.3,2761.4,0.01101564]
[1769784252166,0.002,2763.3,2761.9,0.01101564]
[1769784252369,0.002,2763.3,2761.7,0.01101564]
[1769784252786,0.002,2763.3,2761.2,0.01101564]
[1769784252992,8.90128847,2763.3,2761.2,0.01101564]
[1769784253176,11.927963,2763.1,2761.1,0.01201564]
[1769784253367,2.08272515,2763.0,2761.1,0.01201564]
[1769784253568,6.449728,2763.1,2761.1,0.01201564]
[1769784253754,8.89928847,2763.1,2761.1,0.01201564]
[1769784253957,8.89928847,2763.1,2761.3,0.01101564]
[1769784254189,0.759,2763.0,2761.1,0.01201564]
[1769784254504,0.759,2763.0,2761.3,0.01101564]
[1769784254656,8.89928847,2763.2,2761.1,0.01201564]
[1769784254864,1.64912885,2763.1,2761.5,0.01101564]
[1769784255087,1.64912885,2763.1,2761.1,0.96139307]
[1769784255386,8.89928847,2762.9,2761.1,0.001]
[1769784255992,0.759,2762.8,2761.1,0.001]
[1769784256293,0.002,2763.3,2761.4,0.01101564]
[1769784256493,0.759,2763.2,2761.4,0.01101564]
[1769784256699,0.002,2763.3,2761.4,0.01101564]
[1769784256894,0.759,2763.1,2761.1,0.001]
[1769784257200,4.912006,2762.9,2761.1,0.01201564]
[1769784257495,8.89928847,2762.6,2761.1,0.001]
[1769784257697,15.90134247,2762.3,2761.1,0.001]
[1769784257883,3.83401564,2762.9,2759.3,0.001]
[1769784257884,8.89928847,2762.0,2759.3,0.001]
[1769784258196,6.921339,2761.6,2759.3,0.001]
[1769784258386,3.619801,2761.4,2759.3,0.001]
[1769784258582,8.89928847,2761.6,2759.8,0.01101564]
[1769784258583,0.759,2761.3,2759.8,0.01101564]
[1769784259163,0.759,2761.3,2760.1,0.01101564]
[1769784259364,0.759,2761.3,2759.8,0.01101564]
[1769784259568,0.759,2761.2,2759.6,0.01101564]
[1769784260190,4.30185,2761.1,2759.3,0.001]
[1769784260381,0.506085,2761.0,2759.6,0.01101564]
[1769784260696,0.759,2761.2,2759.3,0.001]
[1769784260697,2.555793,2761.1,2759.3,0.001]
[1769784260865,2.555793,2761.1,2759.4,0.01101564]
[1769784260866,4.038608,2761.1,2759.4,0.01101564]
[1769784261066,4.038608,2761.1,2759.3,0.001]
[1769784261565,9.65828847,2761.2,2759.6,0.01101564]
[1769784261800,8.89928847,2761.0,2759.3,0.001]
[1769784262092,8.89928847,2761.0,2757.6,0.01101564]
[1769784262093,8.89928847,2760.4,2758.2,0.01101564]
[1769784262285,8.89928847,2760.4,2758.4,0.01101564]
[1769784262482,4.70196,2760.3,2758.4,0.01101564]
[1769784262877,8.89928847,2760.2,2758.2,0.01101564]
[1769784263077,10.25941332,2760.1,2758.3,0.01101564]
[1769784263373,10.25941332,2760.1,2757.9,0.01101564]
[1769784263571,4.453368,2760.0,2758.0,0.01101564]
[1769784263772,2.006284,2760.0,2757.8,0.91751613]
[1769784263979,3.730949,2760.0,2757.7,9.48175864]
[1769784264310,0.01101564,2760.4,2758.1,0.01101564]
[1769784264465,8.89928847,2760.4,2758.1,0.01101564]
[1769784264667,22.706968,2760.2,2757.9,0.01101564]
[1769784264866,8.89928847,2760.1,2757.9,0.01101564]
[1769784265084,11.944228,2760.0,2758.1,0.01101564]
[1769784265292,2.08435165,2759.9,2758.1,0.01101564]
[1769784265463,0.759,2759.8,2757.9,0.01101564]
[1769784265669,0.759,2759.8,2758.1,0.01101564]
[1769784266117,16.071553,2759.7,2757.8,0.9591915]
[1769784266264,0.759,2759.8,2758.2,0.01101564]
[1769784266464,0.759,2759.8,2758.4,0.01101564]
[1769784266704,0.759,2759.8,2758.3,0.01101564]
[1769784266874,0.759,2759.8,2758.1,0.01101564]
[1769784267074,0.759,2760.2,2758.5,0.01101564]
[1769784267391,2.092691,2760.7,2758.9,0.01101564]
[1769784267586,3.797211,2760.5,2758.6,0.01101564]
[1769784267791,2.797211,2760.5,2758.9,0.01101564]
[1769784267992,1.09919795,2760.6,2759.3,0.01101564]
[1769784268178,0.759,2760.8,2759.2,0.01101564]
[1769784268505,12.74228147,2760.7,2758.7,0.01101564]
[1769784268706,0.759,2760.8,2758.0,9.48175864]
[1769784268707,33.67699347,2760.4,2758.0,9.48175864]